fUSD/lending_fUSD_20240218
["ID","MTS","AMOUNT","RATE_DAILY","PERIOD"]
[314354030,1708222241766,-235.65010038,0.000379,2]
[314354031,1708222241775,-628740.978915,0.000379,3]
[314354032,1708222241784,-1526.404938,0.000379,25]
[314354033,1708222241793,-3000.0,0.000379,2]
[314354034,1708222241803,-200.0,0.000379,2]
[314354035,1708222241813,-16644.84598607,0.000379,2]
[314354036,1708222241822,-1780587.79010479,0.000379,4]
[314354037,1708222241832,-4000.0,0.000379,2]
[314354038,1708222241841,-300.0,0.00037915,2]
[314354039,1708222241852,-1500.0,0.00037918,2]
[314354040,1708222241861,-313.44,0.00037928,2]
[314354041,1708222241870,-754417.23244995,0.0003793,3]
[314354042,1708222241879,-1500.0,0.00037931,2]
[314354043,1708222241888,-302.20333922,0.00037937,2]
[314354044,1708222241897,-13693.069542,0.0003794,2]
[314354045,1708222241906,-200983.9867917,0.0003794,2]
[314354046,1708222241915,-5581.5710442,0.0003794,2]
[314354047,1708222241924,-19141.2534384,0.00037942,2]
[314354048,1708222241932,-150.0,0.00037946,2]
[314354049,1708222241942,-150.01,0.00037947,2]
[314354050,1708222241951,-3318.4901846,0.00037947,2]
[314354051,1708222241960,-12229.3122417,0.00037953,2]
[314354052,1708222241969,-830.07659088,0.00037957,2]
[314354053,1708222241978,-150.0,0.0003796,2]
[314354054,1708222241988,-151.74142693,0.00037965,2]
[314354055,1708222241998,-1593.45591278,0.00037968,2]
[314354056,1708222242007,-214.1971766,0.00037968,4]
[314354057,1708222242017,-1161.40874384,0.00037968,11]
[314354058,1708222242026,-153.91957767,0.00037976,2]
[314354059,1708222242035,-76482.64028938,0.00037989,3]
[314354060,1708222242045,-539.19278546,0.0003799,2]
[314354061,1708222242054,-200.0,0.0003799,7]
[314354062,1708222242065,-200.0,0.0003799,7]
[314354063,1708222242074,-203.24253921,0.0003799,7]
[314354064,1708222242084,-164.20653129,0.00037997,4]
[314354065,1708222242093,-500.0,0.00037999,15]
[314354066,1708222242103,-325.05012884,0.00037999,15]
[314354067,1708222242112,-256.12187527,0.00037999,15]
[314354068,1708222242121,-500.0,0.00037999,15]
[314354069,1708222242131,-192.69449202,0.00037999,15]
[314354070,1708222242140,-300.0,0.00037999,2]
[314354071,1708222242149,-300.0,0.00037999,2]
[314354072,1708222242159,-300.0,0.00037999,2]
[314354073,1708222242168,-221.27570331,0.00037999,2]
[314354074,1708222242178,-203.0,0.00038,10]
[314354075,1708222242187,-300.0,0.00038,39]
[314354076,1708222242196,-1020298.31181132,0.00038,2]
[314354077,1708222242206,-935.85066898,0.00038,2]
[314354078,1708222242216,-1424967.34115877,0.00038,2]
[314354079,1708222242226,-244612.11540957,0.00038,2]
[314354080,1708222242236,-47078.41444966,0.00038,2]
[314354081,1708222242244,-500.0,0.00038,14]
[314354082,1708222242255,-1007.22542589,0.00038,15]
[314354083,1708222242264,-151.0,0.00038,2]
[314354084,1708222242273,-2929.182453,0.00038,33]
[314354085,1708222242282,-3000.0,0.00038,33]
[314354086,1708222242292,-150.0,0.00038,12]
[314354087,1708222242301,-200.0,0.00038,2]
[314354088,1708222242310,-200.0,0.00038,2]
[314354089,1708222242319,-200.0,0.00038,2]
[314354090,1708222242328,-200.0,0.00038,2]
[314354091,1708222242337,-200.0,0.00038,2]
[314354092,1708222242346,-200.0,0.00038,2]
[314354093,1708222242355,-200.0,0.00038,2]
[314354094,1708222242364,-319.0,0.00038,2]
[314354095,1708222242373,-899.0,0.00038,2]
[314354096,1708222242381,-1000.0,0.00038,2]
[314354097,1708222242390,-1504.0613,0.00038,2]
[314354098,1708222242399,-347.0,0.00038,2]
[314354099,1708222242409,-877.5555,0.00038,2]
[314354100,1708222242418,-16644.84598607,0.00038,2]
[314354101,1708222242427,-3000.0,0.0003801,34]
[314354102,1708222242436,-151.0,0.00038016,2]
[314354103,1708222242445,-182.0,0.00038016,2]
[314354104,1708222242454,-151.99,0.00038016,2]
[314354105,1708222242463,-164.148,0.00038016,2]
[314354106,1708222242472,-150.361,0.00038016,2]
[314354107,1708222242481,-200.0,0.00038016,2]
[314354108,1708222242490,-206.513,0.00038017,2]
[314354109,1708222242499,-182.075,0.00038017,2]
[314354110,1708222242508,-150.27,0.00038017,2]
[314354111,1708222242517,-212.002,0.00038017,2]
[314354112,1708222242526,-150.0,0.00038017,2]
[314354113,1708222242535,-150.182,0.00038017,2]
[314354114,1708222242544,-1370.0,0.00038017,2]
[314354115,1708222242553,-2691.0,0.00038017,2]
[314354116,1708222242563,-1866.0,0.00038017,2]
[314354117,1708222242573,-454.0,0.00038017,2]
[314354118,1708222242582,-960.363,0.00038017,2]
[314354119,1708222242591,-333.674,0.00038017,2]
[314354120,1708222242600,-844.0,0.00038017,2]
[314354121,1708222242609,-709.0,0.00038017,2]
[314354122,1708222242618,-1231.671,0.00038017,2]
[314354123,1708222242627,-221.921,0.00038017,2]
[314354124,1708222242636,-1987.622,0.00038017,2]
[314354125,1708222242645,-1255.0,0.00038017,2]
[314354126,1708222242655,-599.0,0.00038017,2]
[314354127,1708222242665,-1011.747,0.00038017,2]
[314354128,1708222242674,-313.884,0.00038017,2]
[314354129,1708222242683,-860.618,0.00038017,2]
[314354130,1708222242692,-573.362,0.00038017,2]
[314354131,1708222242702,-1138.0,0.00038017,2]
[314354132,1708222242711,-254.868,0.00038017,2]
[314354133,1708222242720,-328.003,0.00038017,2]
[314354134,1708222242730,-2872.0,0.00038017,2]
[314354135,1708222242738,-343.0,0.00038017,2]
[314354136,1708222242747,-404.483,0.00038017,2]
[314354137,1708222242757,-458.244,0.00038017,2]
[314354138,1708222242766,-2479.809,0.00038017,2]
[314354139,1708222242775,-2929.0,0.00038017,2]
[314354140,1708222242784,-7422.0,0.00038017,2]
[314354141,1708222242793,-42606.0,0.00038017,2]
[314354142,1708222242802,-2291.0,0.00038017,2]
[314354143,1708222242812,-8215.961,0.00038017,2]
[314354144,1708222242820,-2986.774,0.00038017,2]
[314354145,1708222242830,-4100.0,0.00038017,2]
[314354146,1708222242838,-19859.0,0.00038017,2]
[314354147,1708222242848,-1038.0,0.00038017,2]
[314354148,1708222242857,-153.47617923,0.00038018,8]
[314354149,1708222242866,-5489.112257,0.0003802,34]
[314354150,1708222242876,-172.63,0.00038025,2]
[314354151,1708222242885,-352.59,0.0003804,2]
[314354152,1708222242894,-153.17,0.00038096,2]
[314354153,1708222242902,-16393.72160956,0.00038119,2]
[314354154,1708222242912,-1161.40874384,0.00038137,11]
[314354155,1708222242921,-152.0,0.00038189,3]
[314354156,1708222242930,-156.21355488,0.0003822,2]
[314354157,1708222242938,-2000.0,0.00038279,2]
[314354158,1708222242947,-200.0,0.00038279,2]
[314354159,1708222242956,-2000.0,0.00038279,2]
[314354160,1708222242965,-200.0,0.00038279,2]
[314354161,1708222242974,-2000.0,0.00038279,2]
[314354162,1708222242984,-200.0,0.00038279,2]
[314354163,1708222242993,-200.0,0.00038279,2]
[314354164,1708222243002,-1161.40874384,0.00038305,11]
[314354165,1708222243011,-405.51,0.00038356,2]
[314354166,1708222243020,-915.91,0.00038356,2]
[314354167,1708222243029,-915.91,0.00038356,2]
[314354168,1708222243039,-405.51,0.00038356,2]
[314354169,1708222243048,-915.91,0.00038356,2]
[314354170,1708222243060,-405.51,0.00038356,2]
[314354171,1708222243069,-317.73,0.00038356,2]
[314354172,1708222243078,-405.51,0.00038356,2]
[314354173,1708222243087,-405.51,0.00038356,2]
[314354174,1708222243097,-420.28,0.00038356,2]
[314354175,1708222243106,-405.51,0.00038356,2]
[314354176,1708222243115,-405.51,0.00038356,2]
[314354177,1708222243124,-811.02,0.00038356,2]
[314354178,1708222243134,-153.28,0.00038356,2]
[314354179,1708222243143,-383.92,0.00038356,15]
[314354180,1708222243152,-16393.72160956,0.00038357,2]
[314354181,1708222243161,-528.07718731,0.0003836,2]
[314354182,1708222243170,-150.0,0.00038408,7]
[314354183,1708222243179,-153.47617923,0.00038434,8]
[314354184,1708222243188,-1161.40874384,0.00038474,11]
[314354185,1708222243198,-165.5238254,0.000385,2]
[314354186,1708222243207,-152.0,0.00038579,4]
[314354187,1708222243217,-16393.72160956,0.00038594,2]
[314354188,1708222243229,-528.07718731,0.00038597,2]
[314354189,1708222243238,-821.06132,0.000386,2]
[314354190,1708222243247,-2932.431149,0.000386,2]
[314354191,1708222243258,-25285.74,0.000386,3]
[314354193,1708222243267,-156.21355488,0.0003864,2]
[314354195,1708222243276,-1161.40874384,0.00038642,12]
[314354197,1708222243285,-2000.0,0.00038662,2]
[314354199,1708222243295,-200.0,0.00038662,2]
[314354201,1708222243306,-2000.0,0.00038662,2]
[314354203,1708222243316,-200.0,0.00038662,2]
[314354205,1708222243325,-2000.0,0.00038662,2]
[314354207,1708222243334,-200.0,0.00038662,2]
[314354209,1708222243344,-200.0,0.00038662,2]
[314354211,1708222243353,-339.0,0.00038705,2]
[314354212,1708222243362,-204.0,0.00038715,2]
[314354213,1708222243371,-595.35074486,0.00038777,2]
[314354214,1708222243380,-160.00833981,0.00038777,2]
[314354215,1708222243389,-193.95508528,0.00038777,2]
[314354216,1708222243398,-2879.9987981,0.00038777,2]
[314354217,1708222243407,-228.2736884,0.00038777,2]
[314354218,1708222243416,-180.0,0.00038779,2]
[314354219,1708222243426,-3000.0,0.000388,8]
[314354220,1708222243435,-238.478187,0.000388,9]
[314354221,1708222243444,-1991.238766,0.000388,9]
[314354222,1708222243453,-200.0,0.000388,2]
[314354223,1708222243462,-1161.40874384,0.00038811,12]
[314354224,1708222243471,-156.54,0.00038826,2]
[314354225,1708222243480,-16393.72160956,0.00038831,2]
[314354226,1708222243621,-528.07718731,0.00038833,2]
[314354227,1708222243631,-153.47617923,0.00038849,9]
[314354228,1708222243640,-194.0,0.00038871,2]
[314354229,1708222243649,-11986.9983052,0.00038873,2]
[314354230,1708222243658,-175942.6329981,0.00038873,2]
[314354231,1708222243667,-4861.3585713,0.00038873,2]
[314354232,1708222243676,-200.0,0.0003889,7]
[314354233,1708222243685,-1181.2529493,0.00038898,4]
[314354234,1708222243694,-231.4136756,0.00038899,2]
[314354235,1708222243703,-155.0,0.00038899,4]
[314354236,1708222243712,-915710.56021554,0.000389,3]
[314354237,1708222243721,-130709.77937157,0.000389,3]
[314354238,1708222243730,-6334.78509394,0.000389,3]
[314354239,1708222243739,-383.98,0.000389,2]
[314354240,1708222243748,-152.42,0.00038921,2]
[314354241,1708222243757,-459.44,0.0003895,2]
[314354242,1708222243766,-150.0,0.00038956,7]
[314354243,1708222243775,-152.0,0.00038969,5]
[314354244,1708222243784,-1161.40874384,0.00038979,12]
[314354245,1708222243793,-5000.0,0.00038986,4]
[314354246,1708222243802,-5000.0,0.00038986,4]
[314354247,1708222243812,-5000.0,0.00038986,4]
[314354248,1708222243821,-5000.0,0.00038986,4]
[314354249,1708222243830,-5000.0,0.00038986,4]
[314354250,1708222243839,-5000.0,0.00038986,4]
[314354251,1708222243849,-5000.0,0.00038986,4]
[314354252,1708222243859,-3242.57492414,0.00038986,4]
[314354253,1708222243868,-1715.3355522,0.00039,120]
[314354254,1708222243877,-300.0,0.00039,40]
[314354255,1708222243886,-32665.2836308,0.00039,40]
[314354256,1708222243895,-500.0,0.00039,14]
[314354257,1708222243903,-2000.0,0.00039048,2]
[314354258,1708222243913,-200.0,0.00039048,2]
[314354259,1708222243921,-2000.0,0.00039048,2]
[314354260,1708222243930,-200.0,0.00039048,2]
[314354261,1708222243939,-200.0,0.00039048,2]
[314354262,1708222243948,-200.0,0.00039048,2]
[314354263,1708222243957,-156.21355488,0.0003906,3]
[314354264,1708222243966,-16393.72160956,0.00039068,2]
[314354265,1708222243974,-528.07718731,0.0003907,2]
[314354266,1708222243984,-5000.0,0.00039104,4]
[314354267,1708222243993,-2112.79293948,0.00039111,30]
[314354268,1708222244003,-1161.40874384,0.00039148,12]
[314354269,1708222244012,-217.0,0.000392,13]
[314354270,1708222244022,-165.5238254,0.000392,2]
[314354271,1708222244031,-313.44,0.00039235,2]
[314354272,1708222244040,-990.51,0.0003926,2]
[314354273,1708222244049,-153.47617923,0.00039265,9]
[314354274,1708222244059,-500.0,0.00039283,2]
[314354275,1708222244067,-500.0,0.00039283,2]
[314354276,1708222244077,-500.0,0.00039283,2]
[314354277,1708222244086,-500.0,0.00039283,2]
[314354278,1708222244095,-500.0,0.00039283,2]
[314354279,1708222244104,-500.0,0.00039283,2]
[314354280,1708222244113,-481.12852737,0.00039283,2]
[314354281,1708222244122,-16393.72160956,0.00039306,2]
[314354282,1708222244132,-528.07718731,0.00039307,2]
[314354283,1708222244141,-1161.40874384,0.00039316,13]
[314354284,1708222244150,-5000.0,0.00039354,4]
[314354285,1708222244159,-152.0,0.00039359,6]
[314354286,1708222244169,-885.18589112,0.00039377,2]
[314354287,1708222244178,-6250.42854477,0.000394,120]
[314354288,1708222244187,-200.0,0.00039439,2]
[314354289,1708222244197,-156.21355488,0.0003948,4]
[314354290,1708222244206,-153.28,0.00039484,2]
[314354291,1708222244216,-1161.40874384,0.00039485,13]
[314354292,1708222244228,-3260.1864635,0.000395,2]
[314354293,1708222244237,-150.0,0.00039504,7]
[314354294,1708222244246,-16393.72160956,0.00039543,2]
[314354295,1708222244255,-528.07718731,0.00039543,2]
[314354296,1708222244266,-3000.0,0.000396,40]
[314354297,1708222244275,-5000.0,0.00039604,4]
[314354298,1708222244284,-3000.0,0.0003961,40]
[314354299,1708222244293,-5489.112257,0.0003962,40]
[314354300,1708222244303,-519.9,0.00039652,2]
[314354301,1708222244313,-1161.40874384,0.00039653,13]
[314354302,1708222244322,-155.18783711,0.00039679,4]
[314354303,1708222244330,-26193.0,0.00039692,5]
[314354304,1708222244339,-2000.0,0.000397,2]
[314354305,1708222244349,-151714.26,0.000397,4]
[314354306,1708222244357,-1504.0613,0.000397,2]
[314354307,1708222244366,-877.5555,0.000397,2]
[314354308,1708222244376,-500.0,0.00039747,4]
[314354309,1708222244385,-152.0,0.00039749,7]
[314354310,1708222244394,-855.16841488,0.00039753,2]
[314354311,1708222244403,-595.35074486,0.00039753,2]
[314354312,1708222244412,-160.00833981,0.00039753,2]
[314354313,1708222244421,-193.95508528,0.00039753,2]
[314354314,1708222244430,-2879.9987981,0.00039753,2]
[314354315,1708222244438,-228.2736884,0.00039753,2]
[314354316,1708222244447,-500.0,0.00039756,4]
[314354317,1708222244456,-16393.72160956,0.0003978,2]
[314354318,1708222244465,-528.07718731,0.0003978,2]
[314354319,1708222244474,-16000.0,0.00039791,3]
[314354320,1708222244483,-4459.68519724,0.000398,7]
[314354321,1708222244492,-8681.55678485,0.000398,3]
[314354322,1708222244501,-500.0,0.000398,4]
[314354323,1708222244510,-1488.20917142,0.000398,5]
[314354324,1708222244519,-13822.36954277,0.000398,5]
[314354325,1708222244528,-2000.0,0.000398,7]
[314354326,1708222244537,-24580.73994591,0.000398,5]
[314354327,1708222244546,-500.0,0.000398,4]
[314354328,1708222244555,-16000.0,0.000398,3]
[314354329,1708222244565,-160.0,0.000398,3]
[314354330,1708222244574,-5397.078008,0.000398,9]
[314354331,1708222244583,-172.63,0.00039836,2]
[314354332,1708222244592,-23920.04842,0.0003985,2]
[314354333,1708222244601,-4238.915569,0.0003985,2]
[314354334,1708222244611,-6032.009026,0.0003985,2]
[314354335,1708222244619,-2990.006052,0.0003985,2]
[314354336,1708222244629,-1361.026744,0.0003985,2]
[314354337,1708222244638,-1149.485848,0.0003985,2]
[314354338,1708222244647,-4105.403609,0.0003985,2]
[314354339,1708222244656,-31411.21114892,0.0003985,2]
[314354340,1708222244666,-10705.6160538,0.00039853,2]
[314354341,1708222244675,-9181.9198659,0.00039853,2]
[314354342,1708222244684,-10280.9270684,0.00039853,2]
[314354343,1708222244693,-8574.8558316,0.00039853,2]
[314354344,1708222244702,-150901.2792045,0.00039853,2]
[314354345,1708222244712,-125859.9254109,0.00039853,2]
[314354346,1708222244723,-4141.1460984,0.00039853,2]
[314354347,1708222244741,-3420.9336255,0.00039853,2]
[314354348,1708222244756,-16693.9651365,0.00039853,2]
[314354349,1708222244768,-14246.6768346,0.00039853,2]
[314354350,1708222244782,-5000.0,0.00039854,4]
[314354351,1708222244795,-200.0,0.0003987,7]
[314354352,1708222244812,-200.0,0.0003987,7]
[314354353,1708222244826,-1009.51663059,0.0003987,4]
[314354354,1708222244837,-251289.68919136,0.00039877,2]
[314354355,1708222244851,-727.33942721,0.0003988,10]
[314354356,1708222244865,-8898498.91607563,0.0003988,2]
[314354357,1708222244878,-1558235.65149034,0.0003988,2]
[314354358,1708222244891,-618312.17375796,0.0003988,2]
[314354359,1708222244903,-95338.09531714,0.0003988,2]
[314354360,1708222244917,-245.23972001,0.0003988,2]
[314354361,1708222244931,-245.23972001,0.0003988,2]
[314354362,1708222244945,-235.65010038,0.0003988,2]
[314354363,1708222244958,-235.65010038,0.0003988,2]
[314354364,1708222244971,-16644.84598607,0.0003988,2]
[314354365,1708222244986,-16644.84598607,0.0003988,2]
[314354366,1708222245001,-1270.47860103,0.00039891,2]
[314354367,1708222245016,-150.1,0.000399,2]
[314354368,1708222245031,-156.21355488,0.000399,6]
[314354369,1708222245041,-165.5238254,0.000399,2]
[314354370,1708222245052,-153.17,0.0003991,2]
[314354371,1708222245066,-7658.2236781,0.00039973,2]
[314354372,1708222245079,-6868.7845948,0.00039973,2]
[314354373,1708222245093,-100818.5716173,0.00039973,2]
[314354374,1708222245105,-2700.7211526,0.00039973,2]
[314354375,1708222245116,-11799.3885327,0.00039973,2]
[314354376,1708222245128,-9352.1002308,0.00039973,2]
[314354377,1708222245141,-6904.8119288,0.00039973,2]
[314354378,1708222245153,-360.26851074,0.00039999,31]
[314354379,1708222245165,-511.1547823,0.00039999,31]
[314354380,1708222245177,-100000.0,0.0004,10]
[314354381,1708222245189,-502.92020436,0.0004,4]
[314354382,1708222245201,-155.0,0.0004,4]
[314354383,1708222245216,-159.61444784,0.0004,30]
[314354384,1708222245231,-400.49503645,0.0004,30]
[314354385,1708222245243,-1148.48046046,0.0004,2]
[314354386,1708222245255,-512.84748544,0.0004,2]
[314354387,1708222245267,-9314.14535638,0.0004,2]
[314354388,1708222245279,-5378.31350596,0.0004,2]
[314354389,1708222245291,-1512.65404164,0.0004,2]
[314354390,1708222245304,-1041.71183142,0.0004,2]
[314354391,1708222245317,-12450.0,0.0004,2]
[314354392,1708222245329,-705.02285968,0.0004,4]
[314354393,1708222245342,-150.0,0.0004,120]
[314354394,1708222245353,-4232.30131502,0.0004,2]
[314354395,1708222245366,-300.0,0.0004,41]
[314354396,1708222245378,-177.0,0.0004,30]
[314354397,1708222245391,-3284.22797069,0.0004,30]
[314354398,1708222245403,-41719.98302857,0.0004,7]
[314354399,1708222245415,-3508.17262097,0.0004,2]
[314354400,1708222245427,-200.0,0.0004,30]
[314354401,1708222245439,-401.38345677,0.0004,3]
[314354402,1708222245451,-500.0,0.0004,14]
[314354403,1708222245463,-1464041.94546269,0.0004,30]
[314354404,1708222245622,-324.69499947,0.0004,30]
[314354405,1708222245650,-4959.2097866,0.0004,30]
[314354406,1708222245669,-3643.0,0.0004,30]
[314354407,1708222245700,-737.97686008,0.0004,30]
[314354408,1708222245715,-25710.28,0.0004,30]
[314354409,1708222245729,-418.00226357,0.0004,30]
[314354410,1708222245744,-449.12448053,0.0004,30]
[314354411,1708222245776,-4252.18336365,0.0004,30]
[314354412,1708222245790,-5152.0,0.0004,30]
[314354413,1708222246016,-153.47617923,0.0003968,9]
[314354414,1708222246028,-208869.92874167,0.0004,30]
[314354415,1708222246060,-2955.20256462,0.0004,30]
[314354416,1708222246075,-25730.0,0.0004,30]
[314354417,1708222246091,-878.86640752,0.0004,30]
[314354418,1708222246120,-559.61791652,0.0004,30]
[314354419,1708222246132,-288.11805248,0.0004,30]
[314354420,1708222246162,-485.305,0.0004,30]
[314354421,1708222246174,-742.5,0.0004,30]
[314354422,1708222246188,-2252.8525217,0.0004,30]
[314354423,1708222246202,-374.526,0.0004,30]
[314354440,1708222246465,-1596.9,0.0004,30]
[314354441,1708222246495,-40580.3861346,0.0004,30]
[314354442,1708222246508,-1555.91707367,0.0004,30]
[314354443,1708222247118,-182.80060868,0.000378,2]
[314354444,1708222247128,-508.49939132,0.00037898,5]
[314354445,1708222247159,-400.3341993,0.00037898,5]
[314354446,1708222247169,-150.01,0.00037947,2]
[314354447,1708222247178,-1889.96511618,0.0004,30]
[314354448,1708222247190,-4783.00785053,0.0004,30]
[314354449,1708222247201,-28888.56613107,0.0004,30]
[314354450,1708222247213,-5679.8,0.0004,30]
[314354451,1708222247227,-8523.83998097,0.0004,30]
[314354452,1708222247238,-17740.36585028,0.0004,30]
[314354453,1708222251759,150.0,0.00022922,2]
[314354454,1708222251805,150.0,0.00022807,2]
[314354455,1708222252082,150.0,0.00022776,2]
[314354456,1708222252347,150.0,0.00022804,2]
[314354457,1708222252447,150.0,0.00022956,2]
[314354458,1708222252493,150.0,0.00022966,2]
[314354459,1708222252552,150.0,0.00022778,2]
[314354460,1708222252601,150.0,0.00022811,2]
[314354461,1708222252681,150.0,0.00022788,2]
[314354462,1708222252739,150.0,0.00022993,2]
[314354463,1708222252791,150.0,0.00022944,2]
[314354464,1708222252988,150.0,0.00022986,2]
[314354465,1708222253223,150.0,0.00022838,2]
[314354466,1708222253273,150.0,0.00022849,2]
[314354467,1708222253347,150.0,0.00022997,2]
[314354468,1708222253423,150.0,0.00022819,2]
[314354469,1708222253679,150.0,0.0002285,2]
[314354470,1708222253717,150.0,0.0002283,2]
[314354471,1708222253753,252.6,0.00022855,2]
[314354472,1708222254423,150.0,0.00022736,2]
[314354479,1708222968585,1567.200363,0.0002,2]
[314354495,1708223432120,-1802.68215406,0.00029894,2]
[314354497,1708223432130,-211.0,0.00029902,2]
[314354499,1708223432140,-908.83359062,0.0003,2]
[314354500,1708223432151,-164.97249766,0.000329,2]
[314354501,1708223432160,-333.0,0.00033,2]
[314354502,1708223432171,-300.0,0.00033,34]
[314354503,1708223432181,-300.0,0.00034,35]
[314354504,1708223432192,-300.0,0.00035,36]
[314354505,1708223432201,-150.0,0.00035999,3]
[314354506,1708223432211,-300.0,0.00036,37]
[314354507,1708223432220,-680.75851429,0.00036,2]
[314354508,1708223432370,-900.90785435,0.00036,2]
[314354509,1708223432382,-1378.26762468,0.00036,2]
[314354579,1708223436845,355.25169603,0.0002,2]
[314354583,1708223438167,-310.24010705,0.00029893,2]
[314354584,1708223438393,-65.99042807,0.00029893,2]
[314354585,1708223438403,-451.17567904,0.00036,2]
[314354586,1708223438424,-1029.336,0.00036,2]
[314354587,1708223438435,-1098.00432764,0.00036,2]
[314354588,1708223438445,-357.22,0.00036014,2]
[314354589,1708223438454,-339.0,0.00036852,2]
[314354590,1708223438464,-300.0,0.00037,38]
[314354591,1708223438473,-288.47976203,0.000374,2]
[314354910,1708223441488,-1194.18161416,0.000374,2]
[314354912,1708223441501,-227.33862381,0.000374,2]
[314354914,1708223441510,-311.94,0.00037851,2]
[314354916,1708223441520,-258.59,0.00037851,2]
[314354918,1708223441529,-666.0,0.00037899,2]
[314354920,1708223441538,-338.93137619,0.00037899,2]
[314354923,1708223441551,-161.05862381,0.00037899,2]
[314354925,1708223441561,-153.29980019,0.00037982,2]
[314354934,1708223441712,-1731.04599243,0.00037982,2]
[314354937,1708223441724,-1240.71788689,0.00037982,2]
[314355089,1708223443154,-494.33920324,0.00037982,2]
[314355090,1708223443167,-5685.42467015,0.00037982,2]
[314355091,1708223443211,-676.44362062,0.00037982,2]
[314355111,1708223443401,-2783.57483169,0.00037982,2]
[314355397,1708223446114,-908.83359062,0.00037981,5]
[314355399,1708223446123,-27589.16569969,0.00037982,2]
[314355422,1708223446329,-1632.00714496,0.00037982,2]
[314355425,1708223446346,-11488.08558655,0.00037982,2]
[314355428,1708223446361,-4128.51227406,0.00037982,2]
[314355431,1708223446386,-328.433,0.00037982,2]
[314355433,1708223446398,-4924.98645472,0.00037982,2]
[314356695,1708224058789,177.0,0.0002,4]
[314356715,1708224632366,-939.19740227,0.00029969,2]
[314356716,1708224632375,-376.23053512,0.0002997,2]
[314356717,1708224632384,-437.98946836,0.00029971,3]
[314356718,1708224632395,-166.25742708,0.00029987,2]
[314356719,1708224632404,-1820.91469214,0.00029992,2]
[314356720,1708224632413,-155.0,0.00031,4]
[314356721,1708224632423,-162.52316733,0.00032966,2]
[314356722,1708224632432,-155.0,0.00033066,4]
[314356723,1708224632441,-152.0,0.00033067,3]
[314356724,1708224632450,-143.66891565,0.00034133,4]
[314356725,1708224632539,-8.33108435,0.00034133,4]
[314356726,1708224632549,-367.64,0.00034952,2]
[314356727,1708224632558,-152.0,0.000352,5]
[314356728,1708224632567,-150.99,0.000352,2]
[314356729,1708224632577,-211.0,0.00035935,2]
[314356730,1708224632587,-4210.627254,0.00036,20]
[314356731,1708224632596,-152.0,0.00036267,6]
[314356732,1708224632605,-162.39,0.00036504,2]
[314356733,1708224632615,-267.52,0.00036519,2]
[314356734,1708224632624,-150.0,0.00036702,2]
[314356735,1708224632633,-442.53,0.00036703,2]
[314356736,1708224632643,-221.13,0.00036714,120]
[314356738,1708224632653,-2000.0,0.00036726,2]
[314356740,1708224632662,-150.0,0.00036773,2]
[314356742,1708224632672,-318.61,0.00036799,2]
[314356743,1708224632681,-250.0,0.00036809,2]
[314356744,1708224632690,-249.56,0.0003682,2]
[314356745,1708224632699,-196.38,0.00037074,2]
[314356746,1708224632709,-603.39566165,0.00037097,2]
[314356747,1708224632720,-340.40155357,0.00037097,2]
[314356751,1708224638528,-200.00371868,0.00037,7]
[314356752,1708224638538,-319.29278478,0.00037097,2]
[314356753,1708224638547,-750.44,0.00037116,2]
[314356754,1708224638556,-367.64,0.00037216,2]
[314356755,1708224638566,-175.89,0.00037231,2]
[314356756,1708224638576,-152.0,0.00037333,7]
[314356757,1708224638585,-1768.0,0.000374,2]